bitfinex-derivatives/quotes_ETHF0:USTF0_20250621
["timestamp","ask_amount","ask_price","bid_price","bid_amount"]
[1750476882086,1.23393,2431.0,2430.9,3.2078]
[1750476882394,1.20968745,2431.0,2430.5,1.23419]
[1750476882587,1.2341,2430.7,2430.6,2.36943374]
[1750476882985,1.23414,2430.6,2430.5,0.7071]
[1750476883190,1.23419,2430.5,2430.4,2.36943374]
[1750476883894,1.23416,2430.6,2430.4,2.36943374]
[1750476884085,1.23419,2430.5,2430.4,2.36943374]
[1750476886193,10.57723374,2430.5,2429.9,3.9138]
[1750476886393,1.23444,2430.0,2429.9,3.9127]
[1750476887895,1.23454,2429.8,2429.6,12.15214]
[1750476888083,1.23454,2429.8,2429.6,12.82034]
[1750476888289,1.23454,2429.8,2429.6,11.5857]
[1750476888489,1.23452,2429.9,2429.6,12.82034]
[1750476888786,1.23452,2429.9,2429.6,11.5857]
[1750476889094,2.36943374,2430.1,2429.6,3.876]
[1750476889302,1.23459,2429.7,2429.6,3.876]
[1750476892792,1.23459,2429.7,2429.6,0.6682]
[1750476895003,1.23459,2429.7,2429.6,1.9852]
[1750476895203,1.23457,2429.8,2429.6,3.21983]
[1750476895504,1.23457,2429.8,2429.7,3.72673374]
[1750476897100,1.23448,2430.0,2429.8,1.23451]
[1750476897407,1.23444,2430.0,2429.9,3.72673374]
[1750476899709,1.23449,2429.9,2429.8,3.2078]
[1750476900409,1.23449,2429.9,2429.8,4.4889]
[1750476901109,1.23449,2429.9,2429.8,1.2811]
[1750476901310,1.23446,2430.0,2429.8,1.2811]
[1750476901517,1.23446,2430.0,2429.9,2.36943374]
[1750476903711,1.23449,2429.9,2429.8,1.2811]
[1750476904206,1.23447,2430.0,2429.8,2.51564]
[1750476904415,1.23447,2430.0,2429.9,3.74653374]
[1750476909116,1.2344,2430.1,2429.9,4.98102374]
[1750476909318,1.2344,2430.1,2430.0,2.6673]
[1750476912417,1.2344,2430.1,2430.0,1.3773]
[1750476913718,2.44251402,2430.1,2430.0,0.707]
[1750476914423,1.23451,2429.9,2429.7,13.24082374]
[1750476914723,1.23451,2429.9,2429.8,0.6593]
[1750476916621,1.23464,2429.6,2429.5,0.33514446]
[1750476916819,1.2347,2429.5,2429.4,6.429]
[1750476917024,1.23459,2429.8,2429.5,1.23467]
[1750476917327,2.44477045,2429.7,2429.5,1.56031356]
[1750476917525,1.2346,2429.7,2429.6,3.01533374]
[1750476918428,1.23458,2429.8,2429.6,3.01533374]
[1750476918727,1.23458,2429.8,2429.6,4.24996374]
[1750476919318,1.91181,2429.9,2429.7,1.23459]
[1750476919518,1.21026187,2429.8,2429.7,1.23459]
[1750476920029,1.21026187,2429.8,2429.6,4.24994374]
[1750476920227,1.91181,2429.9,2429.6,4.24994374]
[1750476920531,1.21016993,2429.8,2429.6,4.24994374]
[1750476920826,1.91181,2429.9,2429.6,4.24994374]
[1750476921021,1.21014814,2429.8,2429.6,4.24994374]
[1750476921223,1.91181,2429.9,2429.6,4.24994374]
[1750476921422,1.21004812,2429.8,2429.6,7.45774374]
[1750476921627,1.91181,2429.9,2429.6,7.45774374]
[1750476921823,1.21002373,2429.8,2429.6,7.45774374]
[1750476922025,1.91181,2429.9,2429.6,7.45774374]
[1750476922229,1.21002785,2429.8,2429.6,7.45774374]
[1750476922428,1.91181,2429.9,2429.6,7.45774374]
[1750476922630,1.20994757,2429.8,2429.6,7.45774374]
[1750476922831,1.91181,2429.9,2429.6,7.45774374]
[1750476923039,2.44448839,2429.8,2429.6,7.45774374]
[1750476923328,1.23454,2429.8,2429.6,7.45774374]
[1750476923832,1.23454,2429.8,2429.6,3.8537]
[1750476924231,1.23454,2429.8,2429.6,5.08834]
[1750476925022,1.23454,2429.8,2429.6,3.8537]
[1750476925429,1.23454,2429.8,2429.6,5.08834]
[1750476926031,1.23454,2429.8,2429.6,1.88054]
[1750476926329,1.23454,2429.8,2429.6,5.08834]
[1750476928335,1.23459,2429.7,2429.6,3.8537]
[1750476929437,1.23459,2429.7,2429.6,3.2078]
[1750476935340,1.23459,2429.7,2429.6,4.44244]
[1750476935938,1.23458,2429.8,2429.6,6.81187374]
[1750476936340,1.93989,2429.7,2429.6,5.57723374]
[1750476937740,1.93989,2429.7,2429.6,2.36943374]
[1750476940647,1.93989,2429.7,2429.5,4.44246]
[1750476940835,1.93989,2429.7,2429.5,6.81189374]
[1750476942338,1.93992,2429.7,2429.5,6.81189374]
[1750476943643,1.23464,2429.6,2429.5,6.81189374]
[1750476944347,1.23464,2429.6,2429.5,5.57723374]
[1750476944742,1.23469,2429.5,2429.4,12.31152824]
[1750476945340,1.23468,2429.6,2429.4,12.31152824]
[1750476945954,1.2347,2429.5,2429.4,11.07681824]
[1750476946255,1.2347,2429.5,2429.4,7.3879845]
[1750476946551,1.23468,2429.6,2429.4,10.99216824]
[1750476946747,1.23468,2429.6,2429.4,4.58216824]
[1750476947852,1.2347,2429.5,2429.4,4.58216824]
[1750476948050,1.23468,2429.6,2429.4,4.58216824]
[1750476949157,1.2347,2429.5,2429.4,3.34741824]
[1750476950151,3.9131,2429.7,2429.2,9.6188]
[1750476950352,1.2348,2429.3,2429.2,3.8619]
[1750476950550,3.2078,2429.7,2429.2,3.8619]
[1750476950750,2.44590562,2429.6,2429.5,3.2078]
[1750476951149,2.44590562,2429.6,2429.5,3.8619]
[1750476951351,2.44590562,2429.6,2429.5,5.1652]
[1750476955059,2.44590562,2429.6,2429.5,3.8619]
[1750476956857,2.44590562,2429.6,2429.5,0.6541]
[1750476957065,1.2348,2429.3,2429.2,3.2078]
[1750476958264,1.2348,2429.3,2429.2,3.8803]
[1750476960166,1.2349,2429.1,2429.0,0.33200046]
[1750476960366,1.2349,2429.1,2429.0,0.6725]
[1750476961465,1.2349,2429.1,2429.0,1.00841743]
[1750476961958,1.2349,2429.1,2429.0,3.37785117]
[1750476963168,1.2349,2429.1,2429.0,1.00841743]
[1750476963468,1.2349,2429.1,2429.0,0.6725]
[1750476964676,1.23495,2429.0,2428.9,6.71569111]
[1750476964871,1.89835,2429.0,2428.9,6.71569111]
[1750476967175,0.6634,2429.0,2428.9,7.95069111]
[1750476967478,1.89835,2429.0,2428.9,6.71569111]
[1750476968170,1.89835,2429.0,2428.9,9.08512485]
[1750476968673,1.89835,2429.0,2428.9,10.32012485]
[1750476968873,1.89835,2429.0,2428.9,6.71569111]
[1750476972676,1.89835,2429.0,2428.9,9.92349111]
[1750476973879,1.89835,2429.0,2428.9,9.6008]
[1750476974178,1.89835,2429.0,2428.9,9.93735751]
[1750476974674,1.89835,2429.0,2428.9,13.54179125]
[1750476974875,1.23495,2429.0,2428.9,13.54179125]
[1750476975176,1.23493,2429.1,2428.9,14.83459125]
[1750476976478,1.23488,2429.2,2429.0,1.23492]
[1750476976773,1.23488,2429.2,2429.1,3.05593374]
[1750476979379,1.23488,2429.2,2429.1,5.07583374]
[1750476980683,0.6806,2429.5,2429.1,5.07583374]
[1750476980884,1.21271537,2429.4,2429.1,5.07583374]
[1750476981084,1.23485,2429.2,2429.1,5.07583374]
[1750476982781,1.23485,2429.2,2429.1,8.28363374]
[1750476983387,1.23485,2429.2,2429.1,4.5737]
[1750476983582,1.23485,2429.2,2428.9,6.72955751]
[1750476983784,1.23495,2429.0,2428.9,0.6505]
[1750476983984,1.23515,2428.6,2428.5,3.2078]
[1750476984180,1.2889,2429.0,2428.5,3.53960628]
[1750476984484,1.21333938,2428.9,2428.5,3.53960628]
[1750476984785,1.23512,2428.7,2428.5,4.87140628]
[1750476984984,1.23512,2428.7,2428.5,6.10660628]
[1750476985482,0.6758,2429.1,2428.6,4.93636374]
[1750476985690,1.23502,2428.9,2428.7,1.3318]
[1750476985895,1.23502,2428.9,2428.7,2.023]
[1750476986178,1.23505,2428.8,2428.7,2.023]
[1750476987683,1.23502,2428.9,2428.7,3.25809]
[1750476987888,1.23502,2428.9,2428.8,4.5342]
[1750476990082,1.23502,2428.9,2428.8,3.2078]
[1750476990476,1.23505,2428.8,2428.7,0.6912]
[1750476990785,1.87905,2428.8,2428.7,0.6912]
[1750476991485,1.23515,2428.6,2428.5,3.2078]
[1750476994990,3.8518,2428.8,2428.5,3.2078]
[1750476995192,3.8518,2428.8,2428.5,4.5675]
[1750476995485,1.93292,2428.9,2428.6,3.60455374]
[1750476995693,1.23498,2429.0,2428.8,5.57723374]
[1750476995885,1.23498,2429.0,2428.9,0.6563]
[1750476996287,0.7095,2429.1,2428.9,0.6563]
[1750476996488,7.0933,2429.3,2428.9,3.23088]
[1750476996801,2.44990642,2429.2,2429.0,3.60438374]
[1750476996990,1.23489,2429.2,2429.0,3.70903374]
[1750476997300,1.23489,2429.2,2429.0,4.94396374]
[1750476997488,1.2349,2429.1,2429.0,3.70903374]
[1750476998197,1.23487,2429.2,2429.0,4.94398374]
[1750476999889,2.63263,2429.3,2429.1,1.2349]
[1750477000193,2.63263,2429.3,2429.1,2.6334]
[1750477000794,1.23485,2429.2,2429.1,2.6334]
[1750477000995,2.63261,2429.3,2429.1,2.6334]
[1750477001794,1.23485,2429.2,2429.1,1.3985]
[1750477001997,2.63263,2429.3,2429.1,2.6334]
[1750477002500,1.23475,2429.4,2429.3,1.2348]
[1750477002798,3.2078,2429.5,2429.3,1.2348]
[1750477003095,3.2078,2429.5,2429.2,1.9439]
[1750477003096,1.2348,2429.3,2429.2,1.9439]
[1750477004697,1.23485,2429.2,2429.1,3.2078]
[1750477004898,1.88615,2429.2,2429.1,3.2078]
[1750477006603,1.88615,2429.2,2429.1,4.4427]
[1750477006798,1.88615,2429.2,2429.1,3.2078]
[1750477008408,1.88615,2429.2,2429.1,4.4427]
[1750477009100,1.88615,2429.2,2429.1,3.2078]
[1750477009510,1.88615,2429.2,2429.1,4.4427]
[1750477009706,0.6977,2429.4,2429.2,1.23483]
[1750477010208,1.23482,2429.3,2429.1,4.44267]
[1750477010406,1.23482,2429.3,2429.2,1.23485]
[1750477011103,1.93248,2429.4,2429.2,1.23485]
[1750477011304,1.2348,2429.3,2429.2,1.23485]
[1750477012204,1.93248,2429.4,2429.2,1.23485]
[1750477012806,1.23478,2429.4,2429.2,1.23485]
[1750477013009,1.23478,2429.4,2429.2,2.59315]
[1750477013307,1.2348,2429.3,2429.2,2.59315]
[1750477013504,1.2348,2429.3,2429.2,1.3583]
[1750477014405,1.2348,2429.3,2429.2,2.59315]
[1750477015606,1.23478,2429.4,2429.2,2.59315]
[1750477015805,0.6715,2429.5,2429.2,2.59315]
[1750477015806,1.90621,2429.5,2429.3,1.23476]
[1750477016294,1.90621,2429.5,2429.3,2.59656]
[1750477017608,1.90621,2429.5,2429.3,1.3618]
[1750477017804,1.90621,2429.5,2429.4,1.23475]
[1750477018104,1.23467,2429.6,2429.4,1.23475]
[1750477018303,1.23467,2429.6,2429.3,1.3618]
[1750477018507,1.23467,2429.6,2429.4,1.23472]
[1750477018809,1.23469,2429.5,2429.4,1.23472]
[1750477019107,1.23475,2429.4,2429.3,2.59656]
[1750477019709,1.23475,2429.4,2429.3,1.3618]
[1750477020210,1.23475,2429.4,2429.3,2.5966]
[1750477020406,1.23473,2429.5,2429.3,2.5966]
[1750477020607,1.23473,2429.5,2429.4,3.2078]
[1750477021004,1.23468,2429.6,2429.4,4.44252]
[1750477021210,1.2347,2429.5,2429.4,5.85702]
[1750477021904,1.23468,2429.6,2429.4,5.85702]
[1750477022099,1.23468,2429.6,2429.4,8.22645374]
[1750477022308,1.23468,2429.6,2429.5,1.2347]
[1750477022813,1.23468,2429.6,2429.4,8.22644374]
[1750477024011,1.23469,2429.5,2429.4,8.22644374]
[1750477024513,1.23469,2429.5,2429.4,4.6223]
[1750477026216,1.23469,2429.5,2429.4,5.3095]
[1750477026715,1.23469,2429.5,2429.4,3.895]
[1750477026916,1.23469,2429.5,2429.4,0.6872]
[1750477030023,1.2348,2429.3,2429.2,6.401]
[1750477030212,2.36943374,2429.6,2429.1,4.6079]
[1750477030516,1.23485,2429.2,2429.1,3.9167]
[1750477031218,1.23481,2429.3,2429.1,3.9167]
[1750477031516,1.23481,2429.3,2429.1,5.259]
[1750477031813,1.23481,2429.3,2429.2,1.23485]
[1750477032420,1.23481,2429.3,2429.1,6.49387]
[1750477033122,1.23485,2429.2,2429.1,5.259]
[1750477033321,1.23485,2429.2,2429.1,3.9167]
[1750477034325,1.23485,2429.2,2429.1,3.2078]
[1750477034718,1.2349,2429.1,2429.0,6.4]
[1750477045027,1.2349,2429.1,2429.0,7.63495]
[1750477046432,1.3619,2429.5,2429.1,1.2349]
[1750477046735,1.23484,2429.3,2429.2,3.2078]
[1750477046931,1.23484,2429.3,2429.2,3.8734]
[1750477048933,1.23477,2429.4,2429.3,1.2348]
[1750477049137,3.2078,2429.8,2429.2,7.47764374]
[1750477049331,3.2078,2429.8,2429.4,2.36943374]
[1750477049332,1.23474,2429.5,2429.4,2.36943374]
[1750477057542,1.23475,2429.4,2429.3,2.0434]
[1750477059542,1.23475,2429.4,2429.3,0.6493]
[1750477059745,1.23473,2429.5,2429.2,12.62183374]
[1750477059949,2.36943374,2429.5,2429.2,10.2524]
[1750477060250,1.2348,2429.3,2429.2,10.2524]
[1750477063352,1.88518,2429.4,2429.2,11.48725]
[1750477065546,1.88518,2429.4,2429.2,12.78505]
[1750477066552,1.23456,2429.8,2429.6,1.23462]
[1750477066851,1.23456,2429.8,2429.3,2.36943374]
[1750477066852,0.6794,2430.0,2429.9,1.23449]
[1750477067154,3.2078,2430.1,2429.8,1.23452]
[1750477067355,4.44222,2430.1,2429.9,1.23449]
[1750477067545,3.2078,2430.1,2430.0,1.23444]
[1750477068354,4.44219,2430.1,2429.9,1.23447]
[1750477068654,4.44219,2430.1,2429.9,2.64167]
[1750477069047,3.2078,2430.1,2430.0,1.23444]
[1750477069450,4.44219,2430.1,2429.9,2.64166]
[1750477070555,1.23444,2430.0,2429.9,1.4072]
[1750477070755,1.23444,2430.0,2429.8,8.93381]
[1750477070955,1.88334,2430.0,2429.8,8.93381]
[1750477071556,1.23449,2429.9,2429.8,7.6993]
[1750477071858,1.23464,2429.6,2429.5,6.379]
[1750477072056,1.23463,2429.7,2429.5,6.379]
[1750477072450,0.6489,2429.6,2429.5,6.379]
[1750477072755,1.23475,2429.4,2429.2,4.44263]
[1750477072956,1.23473,2429.5,2429.2,4.44263]
[1750477073154,1.23473,2429.5,2429.3,1.23479]
[1750477073558,1.23473,2429.5,2429.2,4.44262]
[1750477073859,1.23475,2429.4,2429.2,4.44262]
[1750477074553,1.23473,2429.5,2429.3,1.23478]
[1750477074759,1.2347,2429.5,2429.3,1.23478]
[1750477076260,0.6489,2429.6,2429.2,4.5276]
[1750477076557,0.6489,2429.6,2429.5,1.23469]
[1750477076759,1.88355,2429.6,2429.4,1.23472]
[1750477076955,1.88355,2429.6,2429.4,1.91942]
[1750477078461,0.6489,2429.6,2429.4,1.91942]
[1750477079356,1.88355,2429.6,2429.4,1.91942]
[1750477080262,1.2347,2429.5,2429.4,0.6847]
[1750477080466,1.88358,2429.6,2429.4,0.6847]
[1750477081266,1.88358,2429.6,2429.4,1.91945]
[1750477081650,1.88358,2429.6,2429.4,0.6847]
[1750477081855,1.88358,2429.6,2429.4,1.91943]
[1750477082258,0.6489,2429.6,2429.5,1.2347]
[1750477082763,1.88354,2429.6,2429.4,1.91941]
[1750477083851,0.6489,2429.6,2429.5,1.2347]
[1750477084059,1.88354,2429.6,2429.4,1.91941]
[1750477086066,0.6489,2429.6,2429.5,4.4425]
[1750477088668,1.88354,2429.6,2429.5,3.2078]
[1750477089270,1.2347,2429.5,2429.4,1.3415]
[1750477089964,1.2347,2429.5,2429.4,2.57625]
[1750477090366,1.88358,2429.6,2429.4,2.57625]
[1750477091267,1.2347,2429.5,2429.4,2.57625]
[1750477091767,1.88358,2429.6,2429.4,2.57625]
[1750477092771,1.2347,2429.5,2429.4,2.57625]
[1750477093269,1.2347,2429.5,2429.4,1.91945]
[1750477093971,1.88357,2429.6,2429.4,1.91945]
[1750477094370,1.2347,2429.5,2429.4,1.91945]
[1750477094763,1.2347,2429.5,2429.4,0.6847]
[1750477099575,0.6489,2429.6,2429.2,3.2078]
[1750477099767,1.23473,2429.5,2429.3,1.23475]
[1750477099963,1.23473,2429.5,2429.4,1.23475]
[1750477100371,1.23473,2429.5,2429.3,1.23477]
[1750477100664,0.6489,2429.6,2429.3,1.23477]
[1750477100869,1.2347,2429.5,2429.3,1.23477]
[1750477102168,1.23475,2429.4,2429.2,12.1605]
[1750477102373,1.2348,2429.3,2429.2,10.82262]
[1750477102678,1.23478,2429.4,2429.2,10.82262]
[1750477102872,1.23478,2429.4,2429.3,1.2348]
[1750477103377,1.23472,2429.5,2429.2,9.5878]
[1750477103575,1.23472,2429.5,2429.2,10.8953]
[1750477103775,1.88359,2429.6,2429.2,10.8953]
[1750477103976,1.88359,2429.6,2429.4,1.23473]
[1750477104183,1.2347,2429.5,2429.3,1.23477]
[1750477105180,1.23475,2429.4,2429.3,1.23477]
[1750477105477,1.23475,2429.4,2429.2,12.13012]
[1750477106080,0.706,2429.3,2429.2,10.82262]
[1750477108776,1.9408,2429.3,2429.2,10.82262]
[1750477109280,0.706,2429.3,2429.2,10.82262]
[1750477109773,1.9408,2429.3,2429.2,9.5878]
[1750477114382,1.9408,2429.3,2429.2,3.2078]
[1750477115283,1.23488,2429.2,2429.0,1.90283]
[1750477116682,1.2349,2429.1,2429.0,0.6679]
[1750477116985,1.2349,2429.1,2429.0,1.90285]
[1750477117981,1.23488,2429.2,2429.0,1.90285]
[1750477118787,1.23488,2429.2,2429.1,1.2349]
[1750477119085,1.94083,2429.3,2429.1,1.23485]
[1750477119784,1.23485,2429.2,2429.0,1.90282]
[1750477119983,1.2349,2429.1,2429.0,0.6679]
[1750477121188,1.2349,2429.1,2429.0,1.90285]
[1750477121893,1.23488,2429.2,2429.0,1.90285]
[1750477122191,1.94083,2429.3,2429.1,1.2349]
[1750477122991,1.23485,2429.2,2429.0,3.19171]
[1750477124087,1.23485,2429.2,2429.1,1.2349]
[1750477125598,1.94083,2429.3,2429.1,1.2349]
[1750477125787,1.23485,2429.2,2429.1,1.2349]
[1750477127793,1.23485,2429.2,2429.0,6.39952]
[1750477130992,1.23485,2429.2,2429.1,1.2349]
[1750477132494,1.94083,2429.3,2429.1,1.2349]
[1750477132994,1.23485,2429.2,2429.1,1.2349]
[1750477139697,0.6597,2429.4,2429.0,1.9568]
[1750477139899,5.14488,2429.6,2429.4,1.23473]
[1750477140200,5.14488,2429.6,2429.5,0.6921]
[1750477140400,6.35687913,2429.6,2429.5,0.6921]
[1750477142299,5.65447913,2429.6,2429.5,0.6921]
[1750477142497,5.65447913,2429.6,2429.5,2.1115]
[1750477144503,2.44667913,2429.6,2429.5,0.6921]
[1750477144801,1.23468,2429.6,2429.5,0.6921]
[1750477148100,1.23472,2429.5,2429.3,5.12717]
[1750477148400,1.23475,2429.4,2429.3,4.44257]
[1750477148793,1.88772,2429.5,2429.3,4.44257]
[1750477148997,1.23475,2429.4,2429.3,4.6268]
[1750477149804,1.23475,2429.4,2429.3,3.2078]
[1750477151609,1.23475,2429.4,2429.3,4.4426]
[1750477152308,1.88773,2429.5,2429.3,4.4426]
[1750477152603,1.23475,2429.4,2429.3,4.4426]
[1750477153208,1.23475,2429.4,2429.3,3.2078]
[1750477154109,1.23475,2429.4,2429.2,5.12001]
[1750477154509,1.2348,2429.3,2429.2,3.8852]
[1750477155008,1.23495,2429.0,2428.9,3.2078]
[1750477156610,1.235,2428.9,2428.8,1.3141]
[1750477157209,1.235,2428.9,2428.8,0.6498]
[1750477158101,1.2351,2428.7,2428.6,3.2078]
[1750477161104,1.23515,2428.6,2428.5,0.6906]
[1750477164817,1.23526,2428.4,2428.3,3.2078]
[1750477165110,1.23526,2428.4,2428.3,3.8934]
[1750477165510,1.23526,2428.4,2428.3,0.6856]
[1750477166815,2.7186,2428.8,2428.3,3.8934]
[1750477166816,1.23522,2428.5,2428.3,3.8934]
[1750477167016,1.23522,2428.5,2428.4,1.23526]
[1750477167316,1.23522,2428.5,2428.3,6.46299]
[1750477167614,1.23522,2428.5,2428.3,8.83242374]
[1750477169218,1.23522,2428.5,2428.4,1.23525]
[1750477169519,1.23522,2428.5,2428.3,8.83241374]
[1750477170222,1.23522,2428.5,2428.4,1.23525]
[1750477171919,1.23522,2428.5,2428.3,8.83240374]
[1750477172318,1.23522,2428.5,2428.4,1.23525]
[1750477173119,1.23522,2428.5,2428.3,6.46297]
[1750477175819,1.23522,2428.5,2428.4,1.23526]
[1750477176023,1.23517,2428.6,2428.4,1.23526]
[1750477176219,1.23517,2428.6,2428.5,1.2352]
[1750477176420,1.23517,2428.6,2428.5,2.5919]
[1750477176919,1.23517,2428.6,2428.5,1.3567]
[1750477177119,1.23517,2428.6,2428.5,2.5919]
[1750477177522,1.3526,2428.8,2428.6,1.23515]
[1750477177817,2.58765,2428.8,2428.7,0.6812]
[1750477185731,3.79739826,2428.8,2428.7,0.6812]
[1750477186625,3.79739826,2428.8,2428.7,1.9163]
[1750477186928,2.56234826,2428.8,2428.7,1.9163]
[1750477188132,1.88984826,2428.8,2428.7,1.9163]
[1750477188428,8.31336,2429.0,2428.8,1.23501]
[1750477188626,0.7054,2429.0,2428.9,1.235]
[1750477188817,2.59727,2429.2,2429.0,1.23492]
[1750477189127,1.21031152,2429.1,2429.0,1.23492]
[1750477189327,2.44521152,2429.1,2429.0,1.23492]
[1750477191630,1.2349,2429.1,2429.0,1.23492]
[1750477192130,1.2349,2429.1,2428.9,1.23497]
[1750477192632,1.23492,2429.1,2428.9,1.23497]
[1750477193137,2.59728,2429.2,2429.0,1.23495]
[1750477193331,1.20957887,2429.1,2429.0,1.23495]
[1750477193521,2.59728,2429.2,2429.0,1.23495]
[1750477193722,1.2349,2429.1,2429.0,1.23495]
[1750477194025,1.2349,2429.1,2428.9,1.23497]
[1750477194431,1.2349,2429.1,2429.0,0.668]
[1750477196029,1.3624,2429.2,2428.8,2.0159]
[1750477196227,1.23497,2429.0,2428.8,3.25091]
[1750477196832,1.23497,2429.0,2428.9,1.235]
[1750477197530,1.23497,2429.0,2428.8,3.25092]
[1750477198337,1.23497,2429.0,2428.9,1.235]
[1750477198538,1.23494,2429.1,2428.9,1.235]
[1750477199431,1.23494,2429.1,2428.8,2.0159]
[1750477199432,1.23495,2429.0,2428.8,3.25092]
[1750477200038,1.23495,2429.0,2428.9,1.235]
[1750477200541,1.23495,2429.0,2428.8,2.0159]
[1750477200542,1.23493,2429.1,2429.0,1.23495]
[1750477200739,1.2349,2429.1,2429.0,1.23495]
[1750477200930,1.2349,2429.1,2428.9,1.23497]
[1750477205043,1.2349,2429.1,2429.0,1.23495]
[1750477205540,1.2349,2429.1,2428.8,2.0159]
[1750477205541,1.3624,2429.2,2429.1,1.2349]
[1750477205729,3.80794753,2429.2,2429.1,1.2349]
[1750477205933,3.80794753,2429.2,2429.0,1.23492]
[1750477206132,2.59725,2429.2,2429.0,1.93892]
[1750477206744,2.59725,2429.2,2429.0,0.704]
[1750477206745,1.2349,2429.1,2429.0,0.704]
[1750477206940,1.2349,2429.1,2428.9,1.23497]
[1750477207436,1.2349,2429.1,2429.0,1.23495]
[1750477208258,2.59728,2429.2,2429.0,1.23495]
[1750477211153,1.2349,2429.1,2429.0,1.23495]
[1750477211556,2.59728,2429.2,2429.0,1.23495]
[1750477212556,1.21127633,2429.1,2429.0,1.23495]
[1750477213059,2.44617633,2429.1,2429.0,1.23495]
[1750477213260,2.44617633,2429.1,2428.9,1.23497]
[1750477213555,1.2349,2429.1,2428.9,1.23497]
[1750477216857,2.89605258,2429.1,2428.9,1.23497]
[1750477217059,1.23495,2429.0,2428.9,1.23497]
[1750477217660,2.44749346,2429.0,2428.9,1.23497]
[1750477217963,1.21254346,2429.0,2428.9,1.23497]
[1750477224268,1.21254346,2429.0,2428.9,2.56977]
[1750477224569,1.20254346,2429.0,2428.9,2.56977]
[1750477226272,1.20254346,2429.0,2428.9,1.23497]
[1750477229462,2.43749346,2429.0,2428.9,1.23497]
[1750477229871,1.20254346,2429.0,2428.9,1.23497]
[1750477230870,2.86369604,2429.0,2428.9,1.23497]
[1750477231572,1.20254346,2429.0,2428.9,1.23497]
[1750477241276,2.43749346,2429.0,2428.9,1.23497]
[1750477241478,1.20254346,2429.0,2428.9,1.23497]
[1750477241880,2.43749346,2429.0,2428.9,1.23497]
[1750477244080,1.20254346,2429.0,2428.9,1.23497]
[1750477244284,1.20254346,2429.0,2428.9,2.64877]
[1750477250486,4.09864604,2429.0,2428.9,2.64877]
[1750477250682,4.09864604,2429.0,2428.9,1.23497]
[1750477250984,2.86369604,2429.0,2428.7,5.14689]
[1750477251185,1.23505,2428.8,2428.7,5.14689]
[1750477251584,0.7085,2428.9,2428.7,5.14689]
[1750477251785,1.94354,2428.9,2428.7,5.14689]
[1750477252085,1.94354,2428.9,2428.8,1.23505]
[1750477254095,0.7085,2428.9,2428.8,1.23505]
[1750477256896,26.56115258,2429.1,2429.0,1.23493]
[1750477257095,28.42632771,2429.1,2429.0,1.23493]
[1750477257289,29.66122771,2429.1,2429.0,1.23493]
[1750477257593,3.52632771,2429.1,2429.0,1.23493]
[1750477257786,26.76417513,2429.1,2429.0,1.23493]
[1750477257992,27.99907513,2429.1,2429.0,1.23493]
[1750477263397,26.76417513,2429.1,2429.0,1.23493]
[1750477264400,27.99907513,2429.1,2429.0,1.23493]
[1750477264789,1.86517513,2429.1,2429.0,1.23493]
[1750477264989,27.99707513,2429.1,2429.0,1.23493]
[1750477267199,1.23495,2429.0,2428.9,1.23497]
[1750477267388,1.23495,2429.0,2428.8,3.33301]
[1750477267389,2.45095513,2429.0,2428.8,3.33301]
[1750477267589,1.23498,2429.0,2428.8,3.33301]
[1750477267798,1.23498,2429.0,2428.9,1.235]
[1750477267999,2.45089254,2429.0,2428.9,1.235]
[1750477269598,1.21591254,2429.0,2428.9,1.235]
[1750477269899,1.21591158,2429.0,2428.9,1.235]
[1750477270201,2.45086158,2429.0,2428.9,1.235]
[1750477270401,1.21591158,2429.0,2428.9,1.235]
[1750477271699,26.10991158,2429.0,2428.9,1.235]
[1750477271997,26.10991158,2429.0,2428.9,2.6106]
[1750477273996,1.21591158,2429.0,2428.9,2.6106]
[1750477274196,0.6492,2429.1,2429.0,1.23495]
[1750477274197,24.894,2429.1,2429.0,1.23495]
[1750477274397,26.10977012,2429.1,2429.0,1.23495]
[1750477274600,26.10977012,2429.1,2429.0,1.93535]
[1750477274798,6.81552671,2429.3,2429.2,1.23485]
[1750477274799,3.2078,2429.3,2429.2,1.23485]
[1750477275002,4.42348548,2429.3,2429.2,1.23485]
[1750477275202,3.2078,2429.3,2429.2,1.23485]
[1750477276303,4.4426,2429.3,2429.1,2.57587]
[1750477276604,3.60776671,2429.2,2429.0,8.29531]
[1750477278507,1.23487,2429.2,2429.0,8.29531]
[1750477278900,2.89574771,2429.2,2429.0,8.29531]
[1750477279807,2.89574771,2429.2,2429.1,1.2349]
[1750477280507,2.89574771,2429.2,2429.0,8.29532]
[1750477282110,2.89574771,2429.2,2429.0,7.0604]
[1750477282111,1.2349,2429.1,2429.0,7.0604]
[1750477282309,1.2349,2429.1,2429.0,6.36]
[1750477282610,1.2349,2429.1,2428.9,1.23497]
[1750477282810,0.7055,2429.0,2428.9,1.23497]
[1750477284817,0.7055,2429.0,2428.9,4.44277]
[1750477288915,0.7055,2429.0,2428.9,3.2078]
[1750477289118,1.94045,2429.0,2428.9,3.2078]
[1750477289313,3.60132771,2429.0,2428.9,3.2078]
[1750477289821,1.2351,2428.7,2428.6,3.2078]
[1750477290013,2.89597771,2428.7,2428.6,3.2078]
[1750477290817,1.2351,2428.7,2428.6,3.2078]
[1750477291217,1.9297,2428.7,2428.6,3.2078]
[1750477293022,1.2352,2428.5,2428.4,7.7425]
[1750477293625,1.2352,2428.5,2428.4,0.6764]
[1750477295434,5.58169905,2428.6,2428.2,0.32504633]
[1750477295736,1.23536,2428.2,2428.1,7.7288]
[1750477295934,1.23536,2428.2,2428.1,8.05138446]
[1750477298643,1.23536,2428.2,2428.1,7.35258446]
[1750477299833,1.23546,2428.0,2427.9,3.2078]